bitfinex-derivatives/quotes_ETHF0:USTF0_20210405
["timestamp","ask_amount","ask_price","bid_price","bid_amount"]
[1617585545987,2.90695,2050.9,2050.7,7.4020306]
[1617585547590,2.90695,2050.9,2050.6,7.39786618]
[1617585548591,2.90695,2050.9,2050.7,7.39788617]
[1617585548991,2.90695,2050.9,2050.6,7.39788424]
[1617585552100,70.3338,2051.3,2050.6,7.39788424]
[1617585552400,70.3338,2051.3,2051.1,6.25992288]
[1617585552802,70.3338,2051.3,2051.2,5.12180927]
[1617585553701,73.24075,2051.3,2051.1,6.26130604]
[1617585554502,2.90695,2051.3,2051.1,6.26130604]
[1617585555402,74.5688,2051.3,2051.1,6.26130604]
[1617585555904,2.90695,2051.2,2051.1,6.26130604]
[1617585558311,2.90695,2051.2,2050.9,10.30597014]
[1617585558709,2.90695,2051.2,2051.1,7.39863485]
[1617585558909,2.90695,2051.2,2051.1,9.39863485]
[1617585559110,2.90695,2051.2,2051.1,2.0]
[1617585559509,60.9259,2052.5,2051.1,2.0]
[1617585559909,60.9259,2052.5,2051.7,2.90695]
[1617585560109,60.9259,2052.5,2052.0,5.12331336]
[1617585561109,60.9259,2052.5,2052.1,5.12325352]
[1617585561510,60.9259,2052.5,2052.2,5.12271374]
[1617585561709,60.9259,2052.5,2052.2,7.61831374]
[1617585561910,60.9259,2052.5,2052.4,2.90695]
[1617585562109,60.9259,2052.5,2052.3,6.26119129]
[1617585562910,57.6838,2052.9,2052.3,6.26119129]
[1617585563312,57.6838,2052.9,2051.8,7.39953874]
[1617585563313,57.6838,2052.9,2052.4,5.12282579]
[1617585563713,57.6838,2052.9,2052.3,5.12295389]
[1617585563913,2.90695,2052.4,2052.3,5.12295389]
[1617585564113,4.83125,2052.4,2052.3,5.12295389]
[1617585564914,4.83125,2052.4,2052.2,6.26117882]
[1617585565113,2.90695,2052.4,2052.2,6.26117882]
[1617585565314,2.90695,2052.4,2052.3,5.12288334]
[1617585565513,2.90695,2052.4,2052.3,7.21488334]
[1617585565714,2.90695,2052.4,2052.3,2.092]
[1617585565916,2.90695,2052.4,2052.3,4.99895]
[1617585566117,2.90695,2052.4,2052.3,11.26281882]
[1617585566518,2.90695,2052.4,2052.3,4.99895]
[1617585566715,15.0599,2054.0,2052.3,4.99895]
[1617585567115,15.0599,2054.0,2053.0,5.12396232]
[1617585567417,15.0599,2054.0,2053.0,7.23476232]
[1617585567820,13.0,2054.2,2053.1,5.12395455]
[1617585568018,2.90695,2053.2,2053.1,5.12395455]
[1617585568219,2.90695,2053.2,2053.0,8.37309329]
[1617585569219,2.90695,2053.2,2053.0,6.26229329]
[1617585569821,2.90695,2053.2,2052.9,6.26215055]
[1617585570220,2.90695,2053.2,2052.5,7.40072337]
[1617585570221,2.90695,2053.2,2052.6,5.11345467]
[1617585570620,2.90695,2053.2,2052.5,5.11353322]
[1617585570820,2.90695,2053.2,2052.3,6.24987393]
[1617585571021,2.90695,2053.2,2052.3,5.11393415]
[1617585571223,2.90695,2053.2,2052.3,4.85783415]
[1617585571421,4.90695,2053.2,2051.9,6.25054628]
[1617585571622,30.0,2053.1,2051.9,6.25054628]
[1617585571824,30.0,2053.1,2050.3,10.79639811]
[1617585571825,2.0,2053.0,2051.8,6.25074944]
[1617585572021,2.90695,2051.9,2051.8,6.25074944]
[1617585572223,2.90695,2051.9,2051.7,6.25136611]
[1617585572422,4.96265,2051.9,2051.7,6.25136611]
[1617585572623,4.96265,2051.9,2051.6,6.25194491]
[1617585573222,4.96265,2051.9,2051.5,6.25180916]
[1617585573625,4.96265,2051.9,2051.6,6.25210615]
[1617585574025,4.96265,2051.9,2051.8,2.90695]
[1617585574325,2.90695,2051.9,2051.8,2.90695]
[1617585574826,2.90695,2051.9,2051.7,6.25168143]
[1617585576029,2.90695,2051.9,2051.8,2.90695]
[1617585577129,2.90695,2051.9,2051.8,5.30645]
[1617585577329,67.3512,2052.2,2051.8,5.30645]
[1617585577330,67.3512,2052.2,2051.8,11.55821107]
[1617585577734,67.3512,2052.2,2051.8,5.30645]
[1617585578131,67.3512,2052.2,2052.1,2.90695]
[1617585578330,2.90695,2052.5,2052.1,2.90695]
[1617585578933,2.90695,2052.5,2052.4,6.24980504]
[1617585579132,2.90695,2052.5,2052.4,8.70970504]
[1617585579332,62.4464,2054.1,2052.4,8.70970504]
[1617585580133,2.90695,2052.5,2052.4,8.70970504]
[1617585580334,2.90695,2052.5,2052.4,6.24980504]
[1617585580935,2.90695,2052.5,2052.3,6.24754144]
[1617585581335,2.90695,2052.5,2052.3,5.10713723]
[1617585583136,2.90695,2052.5,2052.1,9.14900661]
[1617585583338,2.90695,2052.5,2052.3,5.10712325]
[1617585583536,2.90695,2052.5,2052.3,7.34082325]
[1617585584138,2.90695,2052.5,2052.4,8.01381828]
[1617585584438,2.90695,2052.5,2052.4,2.90695]
[1617585585138,2.90695,2052.5,2052.4,8.01392252]
[1617585585939,2.90695,2052.5,2052.2,6.2418553]
[1617585585940,2.90695,2052.5,2052.3,6.24167523]
[1617585586340,2.90695,2052.5,2052.3,5.10704674]
[1617585586742,2.90695,2052.5,2052.1,8.01429033]
[1617585587441,2.90695,2052.5,2052.2,5.10717287]
[1617585589743,74.8663,2053.6,2052.2,5.10717287]
[1617585590144,2.90695,2052.8,2052.5,2.90695]
[1617585598355,2.90695,2052.8,2052.1,5.10305323]
[1617585598557,2.90695,2052.2,2052.1,5.10305323]
[1617585598955,2.90695,2052.2,2051.9,5.10391697]
[1617585599357,2.90695,2052.2,2051.4,5.10461466]
[1617585599555,2.90695,2052.2,2051.3,5.10492557]
[1617585600358,2.90695,2052.2,2051.2,5.10503236]
[1617585600556,2.90695,2051.3,2051.2,8.01198236]
[1617585602963,2.90695,2051.3,2051.2,2.90695]
[1617585603261,2.90695,2051.3,2051.2,8.00891431]
[1617585603862,2.90695,2051.3,2051.2,5.10196431]
[1617585604262,2.90695,2051.3,2050.7,2.0]
[1617585604263,2.90695,2051.3,2051.1,5.10221439]
[1617585604663,2.90695,2051.3,2051.0,5.10227268]
[1617585604963,2.90695,2051.3,2051.2,5.10532329]
[1617585606164,2.90695,2051.3,2051.0,5.10567896]
[1617585607868,2.90695,2051.3,2051.1,5.10584141]
[1617585610475,2.90695,2051.3,2051.2,2.90695]
[1617585610675,2.90695,2051.3,2051.2,8.01261789]
[1617585611477,2.90695,2051.3,2051.2,2.90695]
[1617585613779,2.90695,2051.3,2051.0,6.24010253]
[1617585613981,2.90695,2051.3,2051.2,5.10335044]
[1617585614780,2.90695,2051.3,2051.1,5.10345306]
[1617585614980,5.65315,2051.3,2051.0,5.10352925]
[1617585615380,5.65315,2051.3,2051.1,5.103505]
[1617585616183,2.90695,2051.3,2051.1,7.791805]
[1617585616383,66.2403,2052.2,2051.2,5.10334338]
[1617585616582,66.2403,2052.2,2051.8,2.90695]
[1617585616783,66.2403,2052.2,2051.8,5.23895]
[1617585617383,66.2403,2052.2,2051.8,10.34382769]
[1617585617782,66.2403,2052.2,2051.9,5.10463811]
[1617585618486,2.0,2053.0,2051.9,5.10463811]
[1617585618685,2.90695,2052.0,2051.9,5.10463811]
[1617585619683,2.90695,2052.0,2051.8,8.01158721]
[1617585619883,2.90695,2052.0,2051.8,5.10463721]
[1617585620483,2.90695,2052.0,2051.7,5.1048646]
[1617585621584,2.90695,2052.0,2051.5,9.14622896]
[1617585621585,2.90695,2052.0,2051.6,5.10501773]
[1617585622585,2.90695,2051.7,2051.6,5.10501773]
[1617585622785,2.90695,2051.7,2051.5,9.14647541]
[1617585625290,5.36955,2051.7,2051.5,9.14647541]
[1617585627790,5.36955,2051.7,2051.6,6.24481683]
[1617585629191,5.36955,2051.7,2051.5,9.15179413]
[1617585634698,5.36955,2051.7,2051.6,6.2447216]
[1617585634895,2.90695,2051.7,2051.6,6.2447216]
[1617585637799,2.90695,2051.7,2051.5,2.90695]
[1617585638699,61.4783,2052.9,2051.5,2.90695]
[1617585638900,2.90695,2052.3,2052.1,2.90695]
[1617585639301,2.90695,2052.3,2052.1,8.02098697]
[1617585640003,2.90695,2052.3,2052.2,5.11628958]
[1617585640403,2.90695,2052.3,2052.1,2.90695]
[1617585640702,2.90695,2052.3,2052.1,9.16008071]
[1617585649414,2.90695,2052.3,2052.2,6.25431237]
[1617585654917,2.90695,2052.3,2052.1,6.25716881]
[1617585656017,2.90695,2052.3,2052.2,6.25722431]
[1617585659524,1.8421,2053.3,2052.2,6.25722431]
[1617585659723,2.0,2053.5,2052.2,6.25722431]
[1617585659923,2.0,2053.8,2052.4,5.11932617]
[1617585660323,2.0,2053.8,2051.9,2.90695]
[1617585660324,67.2904,2053.8,2052.8,56.918]
[1617585661127,2.90695,2052.9,2052.8,56.918]
[1617585664030,2.90695,2052.9,2052.6,5.12174887]
[1617585665130,2.90695,2052.9,2052.5,5.12178964]
[1617585666632,2.90695,2052.9,2052.6,5.12177551]
[1617585667034,2.90695,2052.9,2052.5,5.12179061]
[1617585667235,2.90695,2052.6,2052.5,5.12179061]
[1617585668636,2.90695,2052.6,2052.4,6.2597812]
[1617585669236,2.90695,2052.6,2052.5,2.90695]
[1617585670041,2.90695,2052.6,2052.5,9.16639644]
[1617585671439,2.90695,2052.6,2052.5,2.90695]
[1617585679552,2.90695,2052.6,2052.5,10.30521009]
[1617585679951,2.90695,2052.6,2052.5,2.90695]
[1617585681047,2.90695,2052.6,2052.5,3.10643297]
[1617585681448,2.90695,2052.6,2052.5,5.10643297]
[1617585681649,2.90695,2052.6,2052.5,13.64140086]
[1617585682452,2.90695,2052.6,2052.5,11.64140086]
[1617585683052,2.90695,2052.6,2052.5,2.90695]
[1617585685254,2.90695,2052.6,2052.5,4.90695]
[1617585685956,2.90695,2052.6,2052.5,12.29624314]
[1617585687756,2.90695,2052.6,2052.5,4.90695]
[1617585688157,2.90695,2052.6,2052.5,5.10593672]
[1617585688859,69.0174,2052.7,2052.5,5.10593672]
[1617585689060,13.0,2054.2,2052.5,5.10593672]
[1617585689261,71.9663,2054.2,2052.5,5.10593672]
[1617585689461,71.9663,2054.2,2053.3,2.90695]
[1617585689662,71.9663,2054.2,2053.4,5.11527278]
[1617585691466,2.90695,2053.5,2053.4,5.11527278]
[1617585694671,2.90695,2053.5,2053.3,9.16034289]
[1617585697675,2.90695,2053.5,2053.3,2.90695]
[1617585698175,2.90695,2053.5,2053.3,8.01570898]
[1617585702880,2.90695,2053.5,2053.3,2.90695]
[1617585703077,5.51575,2053.5,2053.3,2.90695]
[1617585703878,5.51575,2053.5,2053.2,5.10891676]
[1617585704078,5.51575,2053.5,2053.1,5.10902333]
[1617585705580,2.6088,2053.5,2053.2,2.90695]
[1617585705981,2.6088,2053.5,2053.1,5.10902333]
[1617585706181,2.6088,2053.5,2053.2,5.10880699]
[1617585706681,2.6088,2053.5,2052.5,9.37959751]
[1617585706682,2.6088,2053.5,2053.3,5.11305696]
[1617585707582,2.90695,2053.4,2053.3,8.02000696]
[1617585709083,2.90695,2053.4,2053.3,2.90695]
[1617585709283,5.51435,2053.4,2053.3,2.90695]
[1617585710684,5.51435,2053.4,2053.2,5.11076228]
[1617585711584,5.51435,2053.4,2053.3,2.90695]
[1617585711784,2.90695,2053.4,2053.3,2.90695]
[1617585712584,2.90695,2053.4,2053.3,8.01766122]
[1617585716489,2.90695,2053.4,2053.3,2.90695]
[1617585717990,2.90695,2053.4,2053.3,9.15568639]
[1617585718791,2.90695,2053.4,2053.3,2.90695]
[1617585719692,2.90695,2053.4,2053.3,9.15566518]
[1617585720091,2.90695,2053.4,2053.3,2.90695]
[1617585720791,5.48825,2053.4,2053.3,2.90695]
[1617585721393,5.48825,2053.4,2053.3,8.01767589]
[1617585721792,5.48825,2053.4,2053.3,2.90695]
[1617585722398,5.48825,2053.4,2053.2,6.24640034]
[1617585722896,5.48825,2053.4,2052.5,2.0]
[1617585722897,5.48825,2053.4,2053.3,5.11090961]
[1617585723297,5.48825,2053.4,2053.2,5.11088364]
[1617585723698,5.48825,2053.4,2053.3,5.11137562]
[1617585724098,5.48825,2053.4,2053.1,6.24723686]
[1617585724099,5.48825,2053.4,2053.2,5.11143496]
[1617585724499,5.48825,2053.4,2053.0,6.24730939]
[1617585724500,5.48825,2053.4,2053.3,5.11146403]
[1617585724800,5.48825,2053.4,2053.2,5.11149197]
[1617585726513,5.48825,2053.4,2053.0,5.11169083]
[1617585727518,5.48825,2053.4,2053.1,5.11195999]
[1617585730107,5.48825,2053.4,2053.2,5.11417942]
[1617585733108,5.48825,2053.4,2053.1,5.11401542]
[1617585734810,5.48825,2053.4,2053.2,5.1139926]
[1617585737914,5.48825,2053.4,2053.3,5.11569496]
[1617585738214,5.48825,2053.4,2053.2,5.11568641]
[1617585740215,5.48825,2053.4,2053.3,5.11563633]
[1617585746117,5.48825,2053.4,2053.1,6.25591239]
[1617585746517,5.48825,2053.4,2053.3,5.12047438]
[1617585747117,2.90695,2053.4,2053.3,5.12047438]
[1617585747318,2.90695,2053.4,2053.3,6.95687438]
[1617585747518,2.90695,2053.4,2053.3,1.8364]
[1617585748118,2.90695,2053.4,2053.3,4.74335]
[1617585749018,2.90695,2053.4,2053.3,2.90695]
[1617585749820,2.90695,2053.4,2053.0,7.39497451]
[1617585750021,2.7292,2053.4,2053.1,2.90695]
[1617585751724,59.7774,2053.8,2053.1,2.90695]
[1617585752124,2.90695,2053.2,2053.1,2.90695]
[1617585753123,59.7774,2053.8,2053.1,2.90695]
[1617585753624,59.7774,2053.8,2053.7,6.26423731]
[1617585754025,62.68435,2053.8,2053.7,6.26423731]
[1617585758232,62.68435,2053.8,2053.6,6.26489441]
[1617585758430,64.96475,2053.8,2053.6,6.26489441]
[1617585758630,64.96475,2053.8,2053.7,5.12582637]
[1617585760636,5.18735,2053.8,2053.7,5.12582637]
[1617585761036,5.18735,2053.8,2053.6,5.12602497]
[1617585763449,5.18735,2053.8,2053.5,5.12603479]
[1617585763648,7.18735,2053.8,2053.5,5.12603479]
[1617585764748,58.0822,2053.7,2053.5,5.12603479]
[1617585765147,60.0822,2053.7,2053.5,5.12603479]
[1617585765549,60.0822,2053.7,2053.5,6.27561644]
[1617585766351,60.0822,2053.7,2053.6,5.55604983]
[1617585767249,60.0822,2053.7,2053.2,7.41651648]
[1617585767850,60.0822,2053.7,2053.1,7.41662361]
[1617585768050,58.0822,2053.7,2053.1,7.41662361]
[1617585768252,2.90695,2053.2,2053.1,7.41662361]
[1617585768652,2.90695,2053.2,2052.8,2.90695]
[1617585768653,2.90695,2053.2,2052.8,11.46429567]
[1617585770153,2.90695,2052.9,2052.8,11.46429567]
[1617585770553,2.90695,2052.9,2052.8,8.55734567]
[1617585775057,2.90695,2052.9,2052.7,8.55909855]
[1617585780973,2.90695,2052.9,2052.8,8.56094634]
[1617585783071,2.90695,2052.9,2052.7,8.56110853]
[1617585783271,2.90695,2052.9,2052.8,8.56104567]
[1617585786277,2.90695,2052.9,2052.7,8.56053099]
[1617585786677,2.90695,2052.9,2052.6,65.80156993]
[1617585789383,2.90695,2052.9,2052.6,8.56056993]
[1617585790382,2.90695,2052.9,2052.8,2.90695]
[1617585792884,2.90695,2052.9,2052.7,8.56040825]
[1617585793085,5.13525,2052.9,2052.7,8.56040825]
[1617585794487,5.13525,2052.9,2052.7,11.46735825]
[1617585794687,5.13525,2052.9,2052.8,8.56002446]
[1617585796491,2.2283,2052.9,2052.7,8.56012946]
[1617585797192,2.90695,2052.8,2052.7,11.46707946]
[1617585797790,2.2804,2053.8,2052.7,8.56012946]
[1617585797991,2.5546,2053.3,2052.7,8.56012946]
[1617585798192,2.5546,2053.3,2053.1,7.41832548]
[1617585799391,2.90695,2053.2,2053.1,7.41832548]
[1617585800493,2.90695,2053.2,2052.8,8.55841658]
[1617585801194,2.90695,2053.2,2052.7,2.90695]
[1617585801195,2.90695,2053.2,2053.1,7.41741517]
[1617585802595,2.90695,2053.2,2052.8,8.55843661]
[1617585803395,2.90695,2052.9,2052.8,8.55843661]
[1617585804297,4.67455,2052.9,2052.8,8.55843661]
[1617585804699,4.67455,2052.9,2052.7,8.55870417]
[1617585805098,4.67455,2052.9,2052.6,8.55902889]
[1617585805697,1.7676,2052.9,2052.6,8.55902889]
[1617585806298,2.90695,2052.7,2052.6,8.55902889]
[1617585806498,2.90695,2052.7,2052.5,8.55920525]
[1617585806899,3.86875,2052.7,2052.5,8.55920525]
[1617585807601,2.90695,2052.7,2052.5,8.55920525]
[1617585808703,2.90695,2052.7,2052.4,8.55659527]
[1617585809303,3.88435,2052.7,2052.4,8.55659527]
[1617585809503,2.90695,2052.7,2052.4,8.55659527]
[1617585811404,2.90695,2052.7,2052.3,8.55911604]
[1617585811806,2.90695,2052.7,2052.4,8.55918516]
[1617585812907,61.8632,2052.8,2052.4,8.55918516]
[1617585814310,2.90695,2052.5,2052.4,8.55918516]
[1617585819312,2.90695,2052.5,2052.2,2.90695]
[1617585819313,2.90695,2052.5,2052.3,8.55478204]
[1617585821414,2.90695,2052.5,2052.2,11.46204496]
[1617585821714,2.90695,2052.5,2052.3,8.55524725]
[1617585823814,2.90695,2052.5,2052.4,8.55487149]
[1617585825722,2.90695,2052.5,2052.4,8.75296835]
[1617585826118,2.90695,2052.5,2052.4,0.19809686]
[1617585826718,2.90695,2052.5,2052.3,0.19810205]
[1617585830927,2.90695,2052.5,2052.4,8.55278389]
[1617585831825,2.90695,2052.5,2052.4,0.1977518]
[1617585832225,2.90695,2052.5,2052.3,0.19774867]
[1617585832425,2.90695,2052.5,2052.4,0.19771325]
[1617585832825,2.90695,2052.5,2052.3,0.19774706]
[1617585833224,2.90695,2052.5,2052.2,2.90695]
[1617585833628,2.90695,2052.5,2052.3,0.19768871]
[1617585834427,2.90695,2052.5,2052.4,8.55373558]
[1617585839033,2.90695,2052.5,2052.4,0.1972408]
[1617585839634,2.90695,2052.5,2052.3,0.19720438]
[1617585840035,2.90695,2052.5,2052.4,0.19720647]
[1617585840235,2.90695,2052.5,2052.3,0.19720126]
[1617585841037,2.90695,2052.5,2052.4,8.55199107]
[1617585842239,2.90695,2052.5,2052.4,8.74917043]
[1617585842638,2.90695,2052.5,2052.4,0.19717936]
[1617585842838,2.90695,2052.5,2052.3,0.19720216]
[1617585845142,2.90695,2052.5,2052.4,8.55365495]
[1617585846543,2.90695,2052.5,2052.4,8.75056425]
[1617585846744,2.90695,2052.5,2052.4,0.1969093]
[1617585847142,2.90695,2052.5,2052.3,0.19706089]
[1617585847543,2.90695,2052.5,2052.4,0.19705045]
[1617585848143,2.90695,2052.5,2052.3,0.19717437]
[1617585849245,2.90695,2052.5,2052.3,9.8987925]
[1617585849444,2.90695,2052.5,2052.4,0.19711152]
[1617585854349,56.6006,2052.8,2052.4,0.19711152]
[1617585854748,56.6006,2052.8,2052.7,8.56003284]
[1617585854948,2.90695,2052.8,2052.7,8.56003284]
[1617585855561,2.90695,2052.8,2052.4,14.52772466]
[1617585855957,81.1252,2053.7,2052.4,16.52772466]
[1617585856154,81.1252,2053.7,2052.5,0.19803716]
[1617585856360,81.1252,2053.7,2053.3,7.41802692]
[1617585856551,81.1252,2053.7,2053.3,9.23792692]
[1617585856751,81.1252,2053.7,2053.4,7.41778019]
[1617585856955,2.90695,2053.5,2053.4,7.41778019]
[1617585857157,2.90695,2053.5,2053.3,9.23415539]
[1617585863357,2.90695,2053.5,2053.4,2.90695]
[1617585864557,2.90695,2053.5,2053.4,11.46041561]
[1617585866057,0.9848,2055.3,2053.4,11.46041561]
[1617585866258,61.0733,2055.0,2053.4,11.46041561]
[1617585866458,61.0733,2055.0,2053.9,7.41196377]
[1617585866858,61.0733,2055.0,2054.1,7.41152831]
[1617585867259,15.90695,2054.2,2054.1,2.90695]
[1617585871365,15.90695,2054.2,2054.1,8.02254424]
[1617585872464,17.90775,2054.2,2054.1,8.02254424]
[1617585873465,15.0008,2054.2,2054.1,8.02254424]
[1617585873665,13.0,2054.2,2054.1,9.96934424]
[1617585873967,13.0,2054.2,2054.1,4.85375]
[1617585875667,13.0,2054.2,2054.1,2.90695]
[1617585879569,13.0,2054.2,2054.1,8.00156807]
[1617585881071,13.0,2054.2,2054.1,2.90695]
[1617585882072,15.739,2054.2,2054.1,2.90695]
[1617585883175,15.739,2054.2,2053.9,5.09712104]
[1617585883374,15.739,2054.2,2054.1,2.90695]
[1617585885578,18.64595,2054.2,2054.1,2.90695]
[1617585885977,15.739,2054.2,2054.1,2.90695]
[1617585886778,13.0,2054.2,2054.1,2.90695]
[1617585888383,13.0,2054.2,2054.1,4.90695]
[1617585888582,13.0,2054.2,2054.1,9.97921968]
[1617585890485,13.0,2054.2,2054.1,4.90695]
[1617585891887,13.0,2054.2,2054.1,5.89025]
[1617585892888,13.0,2054.2,2054.1,12.08198134]
[1617585894690,13.0,2054.2,2054.1,5.89025]
[1617585896691,13.0,2054.2,2054.1,4.90695]
[1617585896892,13.0,2054.2,2054.1,2.90695]
[1617585897293,13.0,2054.2,2054.1,7.96697141]
[1617585897493,15.90695,2054.2,2054.1,7.96697141]
[1617585897694,15.90695,2054.2,2054.1,2.90695]
[1617585900495,15.68115,2054.2,2054.1,2.90695]
[1617585903900,15.68115,2054.2,2053.7,5.06680549]
[1617585904598,15.68115,2054.2,2053.2,2.0]
[1617585904599,15.68115,2054.2,2053.5,5.06967207]
[1617585905200,15.68115,2054.2,2053.4,5.07652181]
[1617585905601,12.7742,2054.2,2053.7,2.90695]
[1617585907604,2.90695,2053.8,2053.5,5.07776926]
[1617585908506,2.90695,2053.8,2053.4,7.99034466]
[1617585908906,2.90695,2053.8,2053.5,5.08428615]
[1617585909305,2.90695,2053.8,2053.6,5.08900538]
[1617585909907,2.90695,2053.8,2053.5,5.09219741]
[1617585910106,5.64445,2053.8,2053.5,5.09219741]
[1617585912811,5.64445,2053.8,2053.4,5.08408582]
[1617585913212,5.64445,2053.8,2053.2,5.08417458]
[1617585913411,5.64445,2053.8,2053.1,5.08401082]
[1617585913611,2.90695,2053.2,2053.1,7.99096082]
[1617585913813,4.95505,2053.2,2053.1,7.99096082]
[1617585914716,2.0481,2053.2,2053.1,7.99096082]
[1617585914916,58.9181,2054.0,2053.1,2.90695]
[1617585915316,58.9181,2054.0,2053.2,5.08633927]
[1617585915616,58.9181,2054.0,2053.5,2.90695]
[1617585917717,2.90695,2053.6,2053.4,5.09030023]
[1617585917917,5.45895,2053.6,2053.3,5.09451921]
[1617585920419,5.45895,2053.6,2053.2,8.00362654]
[1617585921321,5.45895,2053.6,2053.3,5.10050015]
[1617585925022,5.45895,2053.6,2053.2,5.10086102]
[1617585925623,2.90695,2053.3,2053.2,5.10086102]
[1617585926524,2.90695,2053.3,2053.0,6.23438569]
[1617585927326,2.90695,2053.3,2053.2,5.10274102]
[1617585929529,2.90695,2053.3,2053.0,6.23438569]
[1617585929931,2.90695,2053.3,2053.1,6.23653365]
[1617585931030,2.90695,2053.3,2052.8,2.90695]
[1617585931031,2.90695,2053.3,2053.2,5.10265297]
[1617585932936,2.90695,2053.3,2053.2,6.2395937]
[1617585935138,2.90695,2053.3,2052.8,10.28101529]
[1617585935539,2.90695,2053.3,2052.9,7.37974826]
[1617585935742,2.90695,2053.0,2052.9,7.37974826]
[1617585937942,2.90695,2053.0,2052.8,2.90695]
[1617585939047,2.90695,2053.0,2052.9,7.36881384]
[1617585941346,58.9181,2054.0,2052.9,7.36881384]
[1617585941756,58.9181,2054.0,2053.4,2.90695]
[1617585941962,58.9181,2054.0,2053.6,7.70818348]
[1617585942352,58.9181,2054.0,2053.7,5.097463]
[1617585943151,12.7742,2054.2,2053.9,5.09676381]
[1617585943751,2.90695,2054.0,2053.9,5.09676381]
[1617585944955,66.32015,2054.0,2053.9,5.09676381]
[1617585947160,66.32015,2054.0,2053.8,6.23679715]
[1617585948865,66.32015,2054.0,2053.9,6.24388499]
[1617585949365,66.32015,2054.0,2053.8,6.23930193]
[1617585950064,66.32015,2054.0,2053.7,2.90695]
[1617585950065,66.32015,2054.0,2053.9,6.23043854]
[1617585952566,66.32015,2054.0,2053.8,6.22789249]
[1617585952968,66.32015,2054.0,2053.9,6.22878374]
[1617585954071,66.32015,2054.0,2053.9,5.09582354]
[1617585954470,66.32015,2054.0,2053.8,5.0969643]
[1617585954669,68.98425,2054.0,2053.8,5.0969643]
[1617585956472,68.98425,2054.0,2053.9,5.09761883]
[1617585958476,68.98425,2054.0,2053.8,5.09802423]
[1617585959176,68.98425,2054.0,2053.7,5.09628093]
[1617585959975,68.98425,2054.0,2053.8,5.09750577]
[1617585962876,5.57105,2054.0,2053.7,5.09812853]
[1617585963477,5.57105,2054.0,2053.6,5.09991494]
[1617585963978,2.90695,2053.7,2053.6,5.09991494]
[1617585966486,2.90695,2053.7,2053.5,6.2325832]
[1617585968681,2.90695,2053.7,2053.6,6.23221397]
[1617585969483,2.90695,2053.7,2053.5,2.1881]
[1617585970083,2.90695,2053.7,2053.5,5.09505]
[1617585975894,2.90695,2053.7,2053.5,12.48498334]
[1617585976596,2.90695,2053.7,2053.5,5.09505]
[1617585976797,2.90695,2053.7,2053.5,2.90695]
[1617585977297,2.90695,2053.7,2053.4,7.39003521]
[1617585978499,2.90695,2053.7,2053.3,7.39026421]
[1617585978798,2.90695,2053.7,2053.4,7.39023872]
[1617585979598,2.90695,2053.7,2053.3,7.39022019]
[1617585980099,2.90695,2053.4,2053.3,7.39022019]
[1617585980701,2.90695,2053.4,2053.2,2.90695]
[1617585981000,2.90695,2053.4,2053.3,0.20163531]
[1617585987908,2.90695,2053.4,2053.3,8.73965323]
[1617585988209,2.90695,2053.4,2053.3,0.20163531]
[1617585989007,2.90695,2053.4,2053.3,8.73963515]
[1617585991109,59.6431,2053.9,2053.3,8.73963515]
[1617585991510,59.6431,2053.9,2053.7,8.55373962]
[1617585991710,12.7742,2054.2,2053.7,8.55373962]
[1617585991909,12.7742,2054.2,2053.6,2.6329]
[1617585992108,12.7742,2054.2,2053.9,2.90695]
[1617585992309,12.7742,2054.2,2053.9,11.46017062]
[1617585993315,12.7742,2054.2,2054.0,8.55262034]
[1617585993611,12.7742,2054.2,2054.1,8.55241003]
[1617585994212,15.68115,2054.2,2054.1,8.55241003]
[1617585998419,15.68115,2054.2,2053.9,11.43661554]
[1617586002331,16.65555,2054.2,2053.9,12.40631554]
[1617586002521,16.65555,2054.2,2054.0,8.53110333]
[1617586002728,16.65555,2054.2,2054.0,11.23800333]
[1617586003222,16.65555,2054.2,2054.0,2.7069]
[1617586003423,15.68115,2054.2,2054.0,2.7069]
[1617586003623,15.68115,2054.2,2054.0,11.23787963]
[1617586003923,15.68115,2054.2,2054.0,2.7069]
[1617586004122,15.68115,2054.2,2053.9,11.44075262]
[1617586004324,15.68115,2054.2,2053.9,2.90695]
[1617586004623,15.68115,2054.2,2053.9,11.44163223]
[1617586005823,15.68115,2054.2,2053.9,2.90695]
[1617586007825,15.68115,2054.2,2054.0,7.40175949]
[1617586013140,15.68115,2054.2,2053.9,7.40135911]
[1617586014139,15.68115,2054.2,2054.0,7.39675385]
[1617586014538,15.68115,2054.2,2053.9,7.39651962]
[1617586015139,15.68115,2054.2,2054.0,7.39755122]
[1617586016942,15.68115,2054.2,2054.1,7.39665908]
[1617586018947,15.68115,2054.2,2053.8,8.52377962]
[1617586019249,15.68115,2054.2,2053.7,8.52339525]
[1617586019748,15.68115,2054.2,2053.8,8.52304685]
[1617586020048,15.68115,2054.2,2054.1,7.38441093]
[1617586022050,15.68115,2054.2,2054.0,7.3870493]
[1617586026853,15.68115,2054.2,2054.1,7.3883656]
[1617586031358,15.68115,2054.2,2053.9,4.77905]
[1617586032958,15.68115,2054.2,2053.9,13.31008815]
[1617586035757,15.68115,2054.2,2053.9,4.77905]
[1617586035958,15.68115,2054.2,2053.9,2.90695]
[1617586036158,15.68115,2054.2,2053.8,8.52526139]
[1617586036358,15.68115,2054.2,2054.1,7.3900396]
[1617586037362,84.94585,2054.2,2054.1,7.3900396]
[1617586040065,84.94585,2054.2,2054.0,7.39189299]
[1617586041670,84.94585,2054.2,2054.1,7.38960643]
[1617586042971,84.94585,2054.2,2053.7,63.86856896]
[1617586043371,84.94585,2054.2,2053.8,8.72814528]
[1617586043771,84.94585,2054.2,2053.8,8.52729948]
[1617586044372,84.94585,2054.2,2053.9,0.2007137]
[1617586044572,84.94585,2054.2,2054.0,2.90695]
[1617586044772,82.0389,2054.2,2054.0,4.99345]
[1617586045571,82.0389,2054.2,2054.0,13.5175665]
[1617586045771,82.0389,2054.2,2054.1,0.2004057]
[1617586045971,82.0389,2054.2,2054.1,8.72285818]
[1617586047977,12.7742,2054.2,2054.1,8.72285818]